Cogmind - Beta 10.2 @@@ ROGUE MODE // 2020.12.24 @ 23:20:18 Player: Joking_Phantom Result: Destroyed by D-53 Grenadier with Mini Grenade Launcher Performance ------------- Evolutions (0) 0 Regions Visited (2) 400 Robots Destroyed (27) 135 Value Destroyed (533) 533 Prototype IDs (6) 120 Alien Tech Used (0) 0 Bonus (-992) -992 TOTAL SCORE: 196 Bonus ------- Friendly Fire -992 Cogmind --------- Core Integrity 0/250 Matter 204/300 Energy 160/160 System Corruption 0% Temperature Cool (36) Movement Treading (200) Ox2 Location -10/Mines Parts ------- > --- POWER (1) -------- Light Nuclear Core > --- PROPULSION (2) --- Light Treads Aluminum Leg > --- UTILITY (2) ------ Large Storage Unit Large Storage Unit > --- WEAPON (2) ------- Light Assault Rifle YI-UF0's Doublenader > --- INVENTORY (16) --- Ion Engine Ion Engine Ion Engine Aluminum Leg Compact Wheel Compact Wheel YI-UF0's Bottomless Matter Pit (125) Power Shielding Small Laser Light Assault Rifle Light Cannon Grenade Launcher Peak State ------------ > --- POWER ------------ Ion Engine > --- PROPULSION ------- Light Treads Light Treads > --- UTILITY ---------- Large Storage Unit YI-UF0's Bottomless Matter Pit > --- WEAPON ----------- Light Assault Rifle YI-UF0's Doublenader > --- INVENTORY -------- Ion Engine Ion Engine Ion Engine Aluminum Leg Aluminum Leg Compact Wheel Compact Wheel Light Assault Rifle Light Cannon Grenade Launcher [Rating: 16] Favorites ----------- Power Ion Engine Engine Ion Engine Power Core Light Nuclear Core Propulsion Light Treads Treads Light Treads Leg Aluminum Leg Wheel Compact Wheel Utility Large Storage Unit Storage Large Storage Unit Weapon Light Assault Rifle Energy Gun EM Pulse Gun Ballistic Gun Light Assault Rifle Launcher YI-UF0's Doublenader Build | -11 -10 -10 ------- Run | Scr Mat Min Slots Evolved . | . . . Power . | . . . Propulsion . | . . . Utility . | . . . Weapon . | . . . Parts Attached 19 | . 9 10 Power 3 | . 1 2 Engine 2 | . 1 1 Core 1 | . . 1 Reactor . | . . . Propulsion 5 | . 4 1 Treads 2 | . 2 . Leg 1 | . . 1 Wheel 2 | . 2 . Hover . | . . . Flight . | . . . Utility 4 | . 2 2 Device . | . . . Storage 4 | . 2 2 Processor . | . . . Hackware . | . . . Protection . | . . . Artifact . | . . . Weapon 7 | . 2 5 Energy Gun . | . . . Energy Cannon . | . . . Ballistic Gun 5 | . 2 3 Ballistic Cannon . | . . . Launcher 2 | . . 2 Special Weapon . | . . . Impact Weapon . | . . . Slashing Weapon . | . . . Piercing Weapon . | . . . Special Melee Weapon . | . . . Unidentified Prototypes 2 | . . 2 Parts Lost 4 | . 1 3 Power . | . . . Propulsion 1 | . . 1 Utility . | . . . Weapon 3 | . 1 2 Highest Loss Streak 2 | . 1 2 Average Slot Usage (%) 99 | . 99 100 Engine 12 | . 14 10 Core 1 | . . 3 Treads 23 | . 23 23 Leg 3 | . 2 4 Wheel 1 | . 2 . Storage 27 | . 27 28 Energy Gun 2 | . 4 . Ballistic Gun 22 | . 23 22 Launcher 2 | . . 5 Naked Turns . | . . . Heaviest Build 44 | 12 40 44 Greatest Support 40 | 20 40 40 Greatest Overweight (x) 2 | . 1 2 Average Overweight (x) . | . . . Largest Inventory Capacity 16 | 6 16 16 Average Capacity 15 | 6 15 15 Most Carried 13 | 6 12 13 Average Carried 10 | 6 10 11 Final Capacity 16 | 6 16 16 Final Carried 13 | 6 12 13 Class Distribution -------------------- 100% | Mutant Dominant Class ---------------- Mutant | -10/Materials Mutant | -10/Mines Resources | -11 -10 -10 ----------- Run | Scr Mat Min Matter Collected 716 | 200 214 302 Remotely . | . . . Salvage Created 907 | 97 506 304 Parts 50 | 4 31 15 Haulers Intercepted 2 | . 2 . Recyclers Shooed . | . . . Parts Field Recycled . | . . . Retrieved Matter . | . . . Parts Self-Destructed . | . . . Prevented . | . . . Kills | -11 -10 -10 ------- Run | Scr Mat Min Combat Hostiles Destroyed 20 | . 13 7 Guns 17 | . 13 4 AOE 3 | . . 3 Classes Destroyed 6 | 1 4 1 Worker 1 | . . 1 Hauler 2 | . 2 . Recycler 1 | 1 . . Watcher 2 | . 2 . Swarmer 9 | . 6 3 Grunt 11 | . 7 4 Best Kill Streak 5 | 1 5 4 Combat Bots Only 5 | . 5 3 Max Kills in Single Turn 3 | 1 2 3 Gunslinging . | . . . Exploded 2 | . . 2 Melee . | . . . Uniques/NPCs Destroyed 1 | . . 1 YI-UF0 (-10/Mines) Combat | -11 -10 -10 -------- Run | Scr Mat Min Damage Taken 1200 | . 678 522 Core 254 | . 122 132 Absorbed by Shields . | . . . Core Remaining (%) 100 | 100 . . Volleys Fired 111 | 2 72 37 Largest 2 | 2 2 2 Hottest 90 | 80 60 90 Shots Fired 219 | 4 143 72 Gun 215 | 4 143 68 Cannon . | . . . Launcher 4 | . . 4 Special . | . . . Kinetic 207 | . 139 68 Thermal 2 | 2 . . Explosive 4 | . . 4 Electromagnetic 6 | 2 4 . Robot Hit Streak 17 | 2 11 17 Robot Miss Streak 5 | 2 3 5 Penetration Max . | . . . Secondary Targets 3 | . 1 2 Max Gunslinging Chain 1 | . 1 1 Shots Hit Robots 140 | 2 88 50 Core Hits 65 | 2 36 27 Critical Hits 1 | . 1 . Critical Kills . | . . . Critical Parts Destroyed 1 | . 1 . Melee Attacks . | . . . Impact . | . . . Slashing . | . . . Piercing . | . . . Sneak Attacks . | . . . Combat Hostiles . | . . . Follow-up Attacks . | . . . Damage Inflicted 1395 | 23 706 666 Guns 1117 | 23 706 388 Cannons . | . . . Explosions 278 | . . 278 Melee . | . . . Ramming . | . . . Kinetic 1083 | . 695 388 Thermal 10 | 10 . . Explosive 278 | . . 278 Electromagnetic 24 | 13 11 . Impact . | . . . Slashing . | . . . Piercing . | . . . Highest Corruption . | . . . Average Corruption . | . . . Corruption Purged . | . . . Overload Shots . | . . . Overflow Damage 5 | . . 5 Projectiles . | . . . Explosions 5 | . . 5 Melee . | . . . Knockbacks . | . . . Impact . | . . . Kinetic . | . . . Secondary . | . . . Self-Inflicted Damage 48 | . . 48 Shots 2 | . . 2 Rammed . | . . . Targets Rammed . | . . . Kicked . | . . . Crushed . | . . . Highest Temperature 68 | 36 20 68 Average Temperature 14 | 20 8 19 Received Heat Transfer 351 | . 174 177 Siege Activations . | . . . Robots Corrupted . | . . . Combat Hostiles . | . . . Parts Fried . | . . . Impact Corruptions . | . . . Robots Melted . | . . . Combat Hostiles . | . . . Parts Melted . | . . . Heat Transferred 25 | 25 . . Parts Sabotaged . | . . . Parts Stolen . | . . . Parts Stripped . | . . . Power Chain Reactions . | . . . Missiles Intercepted . | . . . Alert | -11 -10 -10 ------- Run | Scr Mat Min Peak Influence 285 | 5 285 125 Initial 86 | . 3 86 Average 112 | 4 145 82 Maximum Alert Level 1 | . 1 . Low Security (%) 80 | 100 62 100 Level 1 19 | . 37 . Level 2 . | . . . Level 3 . | . . . Level 4 . | . . . Level 5 . | . . . High Security . | . . . Max Security . | . . . Squads Dispatched 2 | . 2 . Investigation 2 | . 2 . Extermination . | . . . Reinforcement . | . . . Assault . | . . . Garrison . | . . . Intercept . | . . . Construction Impeded . | . . . Haulers Reinforced . | . . . Stealth | -11 -10 -10 --------- Run | Scr Mat Min Distress Signals . | . . . Communications Jammed . | . . . Distress Signals . | . . . Times Spotted 30 | . 21 9 Peak Tracking Total 6 | . 6 3 Tactical Retreats 3 | . 3 . Traps | -11 -10 -10 ------- Run | Scr Mat Min Traps Triggered 1 | . 1 . Indirectly . | . . . Trap Hack Attempts . | . . . Triggered . | . . . Disarmed . | . . . Reprogrammed . | . . . Reused . | . . . Traps Extracted . | . . . Installed . | . . . Triggered . | . . . Machines | -11 -10 -10 ---------- Run | Scr Mat Min Machines Disabled 1 | . 1 . Max in Single Turn 1 | . 1 . Machines Sabotaged . | . . . Garrisons Compromised . | . . . Overloaded Fab Kills . | . . . Fab Network Shutdowns . | . . . Hacking | -11 -10 -10 --------- Run | Scr Mat Min Machines Accessed 3 | . 3 . Terminals 3 | . 3 . Fabricators . | . . . Repair Stations . | . . . Recycling Units . | . . . Scanalyzers . | . . . Garrison Access . | . . . Total Hacks 9 | . 9 . Successful 5 | . 5 . Failed 4 | . 4 . Catastrophic . | . . . Database Lockouts . | . . . Manual 3 | . 3 . Terminals 9 | . 9 . Fabricators . | . . . Repair Stations . | . . . Recycling Units . | . . . Scanalyzers . | . . . Garrison Access . | . . . Terminal Hacks 3 | . 3 . Prototype ID Bank 2 | . 2 . Locate Traps 1 | . 1 . Fabricator Hacks . | . . . Repair Station Hacks . | . . . Recycling Unit Hacks . | . . . Scanalyzer . | . . . Garrison Access Hacks . | . . . Unauthorized Hacks 2 | . 2 . Terminals 2 | . 2 . Track 2 | . 2 . Fabricators . | . . . Repair Stations . | . . . Recycling Units . | . . . Scanalyzers . | . . . Garrison Access . | . . . Data Cores Recovered . | . . . Used . | . . . Hacking Detections 3 | . 3 . Full Trace Events 1 | . 1 . Feedback Events . | . . . Feedback Blocked . | . . . Robot Schematics Acquired . | . . . Robots Built . | . . . Matter . | . . . Time . | . . . Total Robot Build Rating . | . . . Part Schematics Acquired . | . . . Parts Built . | . . . Matter . | . . . Time . | . . . Total Part Build Rating . | . . . Parts Repaired . | . . . Time . | . . . Parts Recycled . | . . . Recycled Matter . | . . . Retrieved Matter . | . . . Retrieved Components . | . . . Parts Scanalyzed . | . . . Part Schematics Acquired . | . . . Parts Damaged . | . . . Bothacking | -11 -10 -10 ------------ Run | Scr Mat Min Used RIF Installer . | . . . Robots Hacked . | . . . Non-combat . | . . . Combat . | . . . Robot Hacks Applied . | . . . Relay Couplers Released . | . . . Robots Rewired . | . . . Allies Hacked . | . . . Hacks Repelled . | . . . Allies | -11 -10 -10 -------- Run | Scr Mat Min Total Allies . | . . . Largest Group . | . . . Highest-Rated Group . | . . . Highest-Rated Ally . | . . . Total Orders . | . . . Ally Attacks . | . . . Total Damage . | . . . Kills . | . . . Allies Corrupted . | . . . Allies Melted . | . . . Intel | -11 -10 -10 ------- Run | Scr Mat Min Robot Analysis Total . | . . . Derelict Logs Recovered 1 | . . 1 Drone Launches . | . . . Drone Recoveries . | . . . Exploration | -11 -10 -10 ------------- Run | Scr Mat Min Turns Passed 1539 | 26 777 736 Spaces Moved 728 | 17 371 340 Core . | . . . Treads 631 | . 291 340 Legs 51 | 17 34 . Wheels 46 | . 46 . Hover . | . . . Flight . | . . . Fastest Speed 110 | 120 110 160 Average Speed 161 | 120 152 174 Slowest Speed 200 | 120 160 200 Overloaded Moves . | . . . Propulsion Burnouts . | . . . Robots Hopped . | . . . Cave-ins Triggered . | . . . Exploration Rate (%) 38 | 2 54 60 Regions Visited 2 Branch Regions 1 Pre-discovered Areas 1 | . . 1 Known Exits Taken . | . . . Unknown Exits Taken 2 | 1 1 . Scrap Searched 1 | . . 1 Spaces Dug . | . . . Terrain Destroyed 37 | . . 37 Melee . | . . . Projectile . | . . . AOE 37 | . . 37 Terrain Rammed . | . . . Walls Destroyed . | . . . Machines Disabled . | . . . Actions | -11 -10 -10 --------- Run | Scr Mat Min Total 906 | 18 464 424 Wait 31 | . 5 26 Move 726 | 16 370 340 Hop . | . . . Pick Up 12 | . 6 6 Fast Attach 7 | . 3 4 Attach 3 | . . 3 Detach . | . . . Swap 9 | . 6 3 Drop 7 | . 2 5 Fire 111 | 2 72 37 Melee . | . . . Ram . | . . . Kick . | . . . Crush . | . . . Escape Stasis . | . . . Rewire . | . . . Trap . | . . . Miscellaneous . | . . . Route ------- -11/Scrapyard -10/Materials (discovered 3 exits: [*Mat x2] / [*Min]) -10/Mines (discovered 1 exit: [*Mat]) History --------- Turn | Location | Event 7 | -11/Scrapyard | Discovered new exit (range 3) 27 | -11/Scrapyard | Entered Materials 123 | -10/Materials | Discovered new exit (range 7) 313 | -10/Materials | Build established: Mutant 381 | -10/Materials | Discovered new exit (range 4) 574 | -10/Materials | Discovered new exit (range 4) 804 | -10/Materials | Entered Mines 814 | -10/Mines | Core integrity fell below 50% 905 | -10/Mines | Discovered new exit (range 10) 933 | -10/Mines | YI-UF0 nonchalantly dropped a Grenade Launcher on the ground 1128 | -10/Mines | Destroyed YI-UF0 1142 | -10/Mines | Found Prototype Storage 1147 | -10/Mines | Found Prototype Launcher 1147 | -10/Mines | Identified YI-UF0's Doublenader 1157 | -10/Mines | Identified YI-UF0's Bottomless Matter Pit 1401 | -10/Mines | Assembled infested the area 1538 | -10/Mines | Core integrity fell below 20% 1540 | -10/Mines | Destroyed by D-53 Grenadier with Mini Grenade Launcher Last Messages --------------- 01339_ U-05 Engineer builds a Wall. 01339_ U-05 Engineer lays Concrete. 01340_ U-05 Engineer builds a Wall. 01348_ U-05 Engineer lays Concrete. 01348_ G-47 Trooper destroyed. 01349_ U-05 Engineer builds a Wall. 01360_ Acquired 32 matter. 01367_ Acquired 51 matter. 01371_ Dropped Ion Engine. 01371_ Acquired Lgt. Nuclear Core. 01401_ ALERT: Infestation in the mines, dispatching Demolisher response squad. 01402_ K-01 Serf collects debris. 01467_ Destroyed Lgt. Ion Engine. 01467_ S-10 Pest destroyed. 01467_ K-01 Serf destroyed. 01469_ S-10 Pest destroyed. 01476_ The unstable cave ceiling collapses. 01536_ K-01 Serf cleans the Plasma Injector. 01537_ U-05 Engineer lays Concrete. Map ----- +----------------------------------------------------+ | ????????????????# """ #??# ######??????????# | | ????????????????# #??# ## ##?????????## | | ###?????????????#* #??# ##?????????# | | ###??????????## #####??# ###???????# | | ##??????????# #??##### """ #####???#! | | #??######### #??# """ ##??# | | #??# #??# ### """ #??# | | #### ####### #### #?## ##?# | | ## ##????# #### #??# #### ### | | # #????# #??# ##??## | | ##???## ######??# ##????## ### | | ## [# ##?##### #####???# #??????## #?# | | ## ##??# #?????# #???????### ##?# | | # ###?# ##### #?????# #?????????## ##??# | | ### #???# #????# #??????????###???# | | # # #?### #???# #????????????????# | | = ### ##??# ##????????????????# | | [% #### ##?# ##?????????????????# | | ### * ##??# #### ##??????????????????# | | ##??### #???## #?###????????????????????# | | ??????## ###????### #????????????????????????# | | ???????####????????## ######???????????????????# | | ????????????????????## #??????????????????## | | ????????????????????# #?????????????????## | | ?????????????????????# #?????????????????# | | ?????????????????????# @ #?????????????????# | | ?????????????????????# #?????????????????# | | ?????????????????????# #?????????????????## | | ?????????????????????# #??????????????????## | | ???????????????????? !## dd ##???????????????????# | | ??????????????????? !?u #????????????????????? | | ?????????????????? ?? #????????????????????? | | ????????????????? #??### #????????????????????? | | ????????????????###?????# ##????????????????????? | | ????????????????????????? #?????????????????????? | | ????????????????????????? r ?????????????????????? | | ?????????????????????????k""?????????????????????? | | ????????????????????????? ""?????????????????????? | | ?????????????????????????k???????????????????????? | | ????????????????????????? ???????????????????????? | | ????????????????????????? ???????????????????????? | | ?????????????????????????????????????????????? ??? | | ?????????????????????????????????????????????? ??? | | ?????????????????????????????????????????????? ?? | | ??????????????????????????????????????????????# ?? | | ??????????????????????????????????????????????# ?? | | ??????????????????????????????????????????????# ## | | ????????????????????????????????????? ## | | ????????????????????????????????????? | | ????????????????????????????????????????????#### # | +----------------------------------------------------+ Best States ------------- Heat Dissipation 25 Energy Generation 14 Energy Capacity 250 Matter Stores 300 Matter Capacity 1800 Sight Range 16 Terrain Scan Density 10 Evasion (%) 40 Recoil Reduction 2 Item Schematics ----------------- None Robot Schematics ------------------ None Fabricated ------------ Nothing Alien Tech Used ----------------- None Achievements -------------- None Challenges ------------ None Game ------ Seed CompactSpikedRouter Manual? 0 Play Time 00:11:15 Cumulative 616.2 hours Start 2020.12.24 @ 23:11:57 End 2020.12.24 @ 23:20:18 Sessions 1 Manual Loads 0 Difficulty Rogue Special Mode None Game No. 133 Rogue 85 Adventurer 0 Explorer 48 Win Type - Total 34 Types 3/1/6/17/0/4/1/1/1 Lore% 77 Gallery% 89 Achievement% 67 Wizard Run 0 Options --------- ASCII 0 Keyboard 0 Movement Mouse Keybinds 0 Fullscreen 2 Font 24/Crisp Map View 76x50 Tactical HUD 1 Map Filters NONE Filters NONE Steam 1 RUN: c79ac0e2-ab89-41fc-b5e8-b540e0ba54b0